bitfinex/quotes_BTCUSD_20250601
["timestamp","ask_amount","ask_price","bid_price","bid_amount"]
[1748751609541,0.00020605,104510.0,104500.0,1.75552118]
[1748751611866,0.00020605,104510.0,104500.0,1.77334585]
[1748751612075,0.00020605,104510.0,104500.0,1.75552118]
[1748751612429,0.00020605,104510.0,104500.0,1.77334583]
[1748751612820,0.00020605,104510.0,104500.0,1.75552118]
[1748751615223,0.00020605,104510.0,104500.0,1.48294651]
[1748751615425,0.00020605,104510.0,104500.0,1.75552118]
[1748751616224,0.00020605,104510.0,104500.0,2.16968911]
[1748751616394,0.00020605,104510.0,104500.0,1.8244372]
[1748751616594,0.00020605,104510.0,104500.0,1.80373012]
[1748751616874,0.0155053,104520.0,104510.0,0.55748736]
[1748751617124,0.0155053,104520.0,104510.0,0.65334166]
[1748751617524,0.0155053,104520.0,104510.0,0.67116247]
[1748751617722,0.0155053,104520.0,104510.0,0.65334166]
[1748751618709,0.0155053,104520.0,104510.0,0.65534166]
[1748751618914,0.0155053,104520.0,104510.0,0.67316229]
[1748751619198,0.0155053,104520.0,104510.0,0.65734166]
[1748751619746,0.0155053,104520.0,104510.0,0.67516225]
[1748751620059,0.0155053,104520.0,104510.0,0.65734166]
[1748751621535,0.0155053,104520.0,104510.0,0.67516303]
[1748751621732,0.0155053,104520.0,104510.0,1.05404303]
[1748751623412,0.0155053,104520.0,104510.0,1.07186453]
[1748751623609,0.0155053,104520.0,104510.0,1.05404303]
[1748751624293,0.0155053,104520.0,104510.0,1.37691602]
[1748751625187,0.0155053,104520.0,104510.0,1.39473718]
[1748751625314,0.0155053,104520.0,104510.0,1.37691602]
[1748751626704,0.0155053,104520.0,104510.0,1.39473718]
[1748751627059,0.0155053,104520.0,104510.0,1.37691602]
[1748751629695,0.0155053,104520.0,104510.0,1.08655602]
[1748751629902,0.0155053,104520.0,104510.0,1.37691602]
[1748751630117,0.0310053,104520.0,104510.0,1.37691602]
[1748751630318,0.0460053,104520.0,104510.0,1.05404303]
[1748751630760,0.0460053,104520.0,104510.0,1.07186417]
[1748751630980,0.0460053,104520.0,104510.0,1.05404303]
[1748751632011,0.0460053,104520.0,104510.0,1.07186416]
[1748751632217,0.0460053,104520.0,104510.0,1.05404303]
[1748751632664,0.0460053,104520.0,104510.0,1.07186417]
[1748751632813,0.0460053,104520.0,104510.0,1.05404303]
[1748751633369,0.0460053,104520.0,104510.0,1.07186417]
[1748751633589,0.0460053,104520.0,104510.0,1.05404303]
[1748751634755,0.0460053,104520.0,104510.0,1.07186417]
[1748751634892,0.0460053,104520.0,104510.0,1.05404303]
[1748751635599,0.0310053,104520.0,104510.0,1.05404303]
[1748751635842,0.0155053,104520.0,104510.0,1.05404303]
[1748751636627,0.0155053,104520.0,104510.0,1.07186368]
[1748751636827,0.0155053,104520.0,104510.0,1.05404303]
[1748751637041,0.0155053,104520.0,104510.0,1.07186368]
[1748751637321,0.0155053,104520.0,104510.0,1.05404303]
[1748751637885,0.0155053,104520.0,104510.0,1.07186348]
[1748751638091,0.0155053,104520.0,104510.0,1.07186345]
[1748751638210,0.0155053,104520.0,104510.0,1.05404303]
[1748751638818,0.05377327,104520.0,104510.0,0.40709328]
[1748751639017,0.24811491,104520.0,104510.0,0.73953454]
[1748751639217,0.22599113,104520.0,104510.0,0.02182137]
[1748751639655,0.22599113,104520.0,104510.0,0.03965262]
[1748751639870,0.22599113,104520.0,104510.0,0.02182137]
[1748751640074,0.22599113,104520.0,104510.0,0.03965395]
[1748751640278,0.22599113,104520.0,104510.0,0.03965399]
[1748751640491,0.22599113,104520.0,104510.0,0.02182137]
[1748751641383,0.22599113,104520.0,104510.0,0.03965397]
[1748751641817,0.22599113,104520.0,104510.0,0.04857027]
[1748751642020,0.22599113,104520.0,104510.0,0.0485716]
[1748751642243,0.22599113,104520.0,104510.0,0.02182137]
[1748751643662,0.22599113,104520.0,104510.0,0.03965506]
[1748751643842,0.23575842,104520.0,104510.0,0.02182137]
[1748751644668,0.23575842,104520.0,104510.0,0.03073821]
[1748751644874,0.23575842,104520.0,104510.0,0.02182137]
[1748751645428,0.23575842,104520.0,104510.0,0.03965504]
[1748751645635,0.23575842,104520.0,104510.0,0.02182137]
[1748751646033,0.23575842,104520.0,104510.0,0.03073821]
[1748751646291,0.23575842,104520.0,104510.0,0.03965505]
[1748751646453,0.23575842,104520.0,104510.0,0.02182137]
[1748751647456,0.23575842,104520.0,104510.0,0.31222137]
[1748751648478,0.23575842,104520.0,104510.0,0.32113823]
[1748751648698,0.23575842,104520.0,104510.0,0.31222137]
[1748751649128,0.23575842,104520.0,104510.0,0.33005507]
[1748751649302,0.23575842,104520.0,104510.0,0.31222137]
[1748751649534,0.23575842,104520.0,104510.0,0.33005507]
[1748751649722,0.23575842,104520.0,104510.0,0.32113822]
[1748751649937,0.23575842,104520.0,104510.0,0.51250742]
[1748751650149,0.25205842,104520.0,104510.0,0.50359061]
[1748751650573,0.26835842,104520.0,104510.0,0.51250742]
[1748751650778,0.26835842,104520.0,104510.0,0.53099269]
[1748751650988,0.26835842,104520.0,104510.0,0.52207611]
[1748751651221,0.26835842,104520.0,104510.0,0.51315907]
[1748751651365,0.26835842,104520.0,104510.0,0.52272744]
[1748751652238,0.26835842,104520.0,104510.0,0.52072744]
[1748751652694,0.26835842,104520.0,104510.0,0.52272744]
[1748751653100,0.26835842,104520.0,104510.0,0.52072744]
[1748751653521,0.26835842,104520.0,104510.0,0.51415907]
[1748751654164,0.26835842,104520.0,104510.0,0.52307621]
[1748751654341,0.26835842,104520.0,104510.0,0.24159331]
[1748751654545,0.26835842,104520.0,104510.0,0.56241348]
[1748751654764,0.26835842,104520.0,104510.0,0.51415907]
[1748751655471,0.26835842,104520.0,104510.0,0.52372734]
[1748751656226,0.25205842,104520.0,104510.0,0.54156129]
[1748751656563,0.23575842,104520.0,104510.0,0.54156135]
[1748751656772,0.23575842,104520.0,104510.0,0.52372734]
[1748751656969,0.23575842,104520.0,104510.0,0.51415907]
[1748751657208,0.23575842,104520.0,104510.0,0.52372744]
[1748751657750,0.23575842,104520.0,104510.0,0.54156145]
[1748751657955,0.23575842,104520.0,104510.0,0.50459061]
[1748751658151,0.22619106,104520.0,104510.0,0.50459061]
[1748751658421,0.22619106,104520.0,104510.0,0.51415907]
[1748751659472,0.22619106,104520.0,104510.0,0.53199308]
[1748751659704,0.22619106,104520.0,104510.0,0.51415907]
[1748751660022,0.22619106,104520.0,104510.0,0.54091011]
[1748751660225,0.22619106,104520.0,104510.0,0.52307608]
[1748751660679,0.22619106,104520.0,104510.0,0.51415907]
[1748751660950,0.22619106,104520.0,104510.0,0.52372734]
[1748751661187,0.22619106,104520.0,104510.0,0.53329562]
[1748751661429,0.22619106,104520.0,104510.0,0.85616861]
[1748751661640,0.22599104,104520.0,104510.0,0.85616861]
[1748751662080,0.22599104,104520.0,104510.0,0.87400174]
[1748751662314,0.22599104,104520.0,104510.0,0.85616861]
[1748751662986,0.22599104,104520.0,104510.0,0.85551698]
[1748751663202,0.22599104,104520.0,104510.0,0.8561687]
[1748751663813,0.22599104,104520.0,104510.0,0.8740018]
[1748751664018,0.22599104,104520.0,104510.0,0.86508525]
[1748751664223,0.22599104,104520.0,104510.0,0.8740018]
[1748751664467,0.22599104,104520.0,104510.0,0.8561687]
[1748751664656,0.22599104,104520.0,104510.0,0.89615705]
[1748751664927,0.22599104,104520.0,104510.0,0.8561687]
[1748751665141,0.22599104,104520.0,104510.0,0.53264398]
[1748751665323,0.22599104,104520.0,104510.0,0.8561687]
[1748751665474,0.22599104,104520.0,104510.0,0.55112881]
[1748751665675,0.24109104,104520.0,104510.0,0.53329571]
[1748751665883,0.25619104,104520.0,104510.0,0.53329571]
[1748751666079,0.25619104,104520.0,104510.0,0.56004536]
[1748751666720,0.25619104,104520.0,104510.0,0.53329571]
[1748751667115,0.25619104,104520.0,104510.0,0.56004536]
[1748751667288,0.25619104,104520.0,104510.0,0.53329571]
[1748751668037,0.25619104,104520.0,104510.0,0.5511288]
[1748751668240,0.25619104,104520.0,104510.0,0.55112881]
[1748751668446,0.25619104,104520.0,104510.0,0.56004535]
[1748751668647,0.25619104,104520.0,104510.0,0.53329571]
[1748751669047,0.25619104,104520.0,104510.0,0.54221225]
[1748751669245,0.25619104,104520.0,104510.0,0.53329571]
[1748751670143,0.25619104,104520.0,104510.0,0.54221225]
[1748751670329,0.25619104,104520.0,104510.0,0.5511288]
[1748751670518,0.25619104,104520.0,104510.0,0.53329571]
[1748751671110,0.25619104,104520.0,104510.0,0.54221226]
[1748751671511,0.25619104,104520.0,104510.0,0.56961354]
[1748751671735,0.25619104,104520.0,104510.0,0.54221226]
[1748751671961,0.25619104,104520.0,104510.0,0.56896191]
[1748751672181,0.25619104,104520.0,104510.0,0.54221226]
[1748751672399,0.25619104,104520.0,104510.0,0.56896191]
[1748751672657,0.25619104,104520.0,104510.0,0.55112881]
[1748751672855,0.25619104,104520.0,104510.0,0.56896191]
[1748751673472,0.25619104,104520.0,104510.0,0.56004536]
[1748751673692,0.25619104,104520.0,104510.0,0.56896191]
[1748751673902,0.25619104,104520.0,104510.0,0.54221226]
[1748751674443,0.25619104,104520.0,104510.0,0.5511288]
[1748751675124,0.25619104,104520.0,104510.0,0.54221226]
[1748751675305,0.25619104,104520.0,104510.0,0.56004535]
[1748751675643,0.25619104,104520.0,104510.0,0.5511288]
[1748751675849,0.24109104,104520.0,104510.0,0.5511288]
[1748751676050,0.22599104,104520.0,104510.0,0.5511288]
[1748751676255,0.22599104,104520.0,104510.0,0.54221226]
[1748751676430,0.22599104,104520.0,104510.0,0.5511288]
[1748751676586,0.22599104,104520.0,104510.0,0.56896188]
[1748751676789,0.22599104,104520.0,104510.0,0.54221226]
[1748751677220,0.22599104,104520.0,104510.0,0.56004535]
[1748751677619,0.22599104,104520.0,104510.0,0.56896189]
[1748751677790,0.22599104,104520.0,104510.0,0.58679491]
[1748751678019,0.22599104,104520.0,104510.0,0.57787839]
[1748751678217,0.22599104,104520.0,104510.0,0.58679492]
[1748751678985,0.22599104,104520.0,104510.0,0.59636249]
[1748751679200,0.22599104,104520.0,104510.0,0.59636247]
[1748751679381,0.22599104,104520.0,104510.0,0.56961353]
[1748751679607,0.22599104,104520.0,104510.0,0.56004535]
[1748751679802,0.22599104,104520.0,104510.0,0.60462688]
[1748751680054,0.22599104,104520.0,104510.0,0.58679426]
[1748751680431,0.22599104,104520.0,104510.0,0.60462688]
[1748751680735,0.22599104,104520.0,104510.0,0.58679426]
[1748751681499,0.22599104,104520.0,104510.0,0.59571056]
[1748751681913,0.22599104,104520.0,104510.0,0.58679426]
[1748751682473,0.22599104,104520.0,104510.0,0.60462686]
[1748751682614,0.22599104,104520.0,104510.0,0.58679426]
[1748751683022,0.22599104,104520.0,104510.0,0.60462686]
[1748751683271,0.22599104,104520.0,104510.0,0.61354316]
[1748751683787,0.22599104,104520.0,104510.0,0.61354292]
[1748751684209,0.22599104,104520.0,104510.0,0.58679426]
[1748751684789,0.22599104,104520.0,104510.0,0.6046267]
[1748751684996,0.22599104,104520.0,104510.0,0.58679426]
[1748751685608,0.21642377,104520.0,104510.0,0.60397465]
[1748751685913,0.21642377,104520.0,104510.0,0.58614221]
[1748751686296,0.21642377,104520.0,104510.0,0.60397469]
[1748751686494,0.21642377,104520.0,104510.0,0.60397471]
[1748751687330,0.21642377,104520.0,104510.0,0.57722599]
[1748751687533,0.21642377,104520.0,104510.0,0.5944064]
[1748751687964,0.21642377,104520.0,104510.0,0.57657388]
[1748751688169,0.21642377,104520.0,104510.0,0.59440646]
[1748751688322,0.21642377,104520.0,104510.0,0.30400646]
[1748751688531,0.21642377,104520.0,104510.0,0.59440646]
[1748751688751,0.21642377,104520.0,104510.0,0.5944065]
[1748751688968,0.21642377,104520.0,104510.0,0.57657392]
[1748751689172,0.21642377,104520.0,104510.0,0.56765762]
[1748751689371,0.23172377,104520.0,104510.0,0.58549022]
[1748751689538,0.23172377,104520.0,104510.0,0.57722589]
[1748751689742,0.24782377,104520.0,104510.0,0.56765762]
[1748751690738,0.24782377,104520.0,104510.0,0.58549036]
[1748751690965,0.24782377,104520.0,104510.0,0.56765762]
[1748751691168,0.24782377,104520.0,104510.0,0.58549036]
[1748751691367,0.24782377,104520.0,104510.0,0.57722599]
[1748751691563,0.24782377,104520.0,104510.0,0.58614235]
[1748751691745,0.24782377,104520.0,104510.0,0.57722599]
[1748751691959,0.24782377,104520.0,104510.0,0.58614235]
[1748751692185,0.24782377,104520.0,104510.0,0.57722599]
[1748751692387,0.24782377,104520.0,104510.0,0.58679426]
[1748751692626,0.24782377,104520.0,104510.0,0.59571062]
[1748751692793,0.24782377,104520.0,104510.0,0.60462699]
[1748751693033,0.24782377,104520.0,104510.0,0.61419517]
[1748751693336,0.24782377,104520.0,104510.0,0.59636244]
[1748751693542,0.24782377,104520.0,104510.0,0.60527879]
[1748751693753,0.24782377,104520.0,104510.0,0.6052788]
[1748751693951,0.24782377,104520.0,104510.0,0.59636244]
[1748751694182,0.24782377,104520.0,104510.0,0.61419516]
[1748751694390,0.24782377,104520.0,104510.0,0.58679426]
[1748751695040,0.24782377,104520.0,104510.0,0.58614235]
[1748751695252,0.24782377,104520.0,104510.0,0.59505871]
[1748751695467,0.24782377,104520.0,104510.0,0.57722599]
[1748751695651,0.24782377,104520.0,104510.0,0.59505871]
[1748751695868,0.24782377,104520.0,104510.0,0.58614234]
[1748751696073,0.24782377,104520.0,104510.0,0.57722599]
[1748751696725,0.24782377,104520.0,104510.0,0.58614237]
[1748751696937,0.24782377,104520.0,104510.0,0.60764616]
[1748751697110,0.24782377,104520.0,104510.0,0.57722599]
[1748751697348,0.24782377,104520.0,104510.0,0.90009898]
[1748751697553,0.24782377,104520.0,104510.0,0.92684806]
[1748751697752,0.24782377,104520.0,104510.0,0.92684808]
[1748751698128,0.24782377,104520.0,104510.0,0.92684809]
[1748751698478,0.24782377,104520.0,104510.0,0.90009898]
[1748751698897,0.24782377,104520.0,104510.0,0.92684809]
[1748751699116,0.24782377,104520.0,104510.0,0.9268481]
[1748751700039,0.24782377,104520.0,104510.0,0.90009898]
[1748751700238,0.24782377,104520.0,104510.0,0.91793176]
[1748751700437,0.24782377,104520.0,104510.0,0.92684815]
[1748751700678,0.24782377,104520.0,104510.0,0.90009898]
[1748751700884,0.24782377,104520.0,104510.0,0.92684815]
[1748751701444,0.24782377,104520.0,104510.0,0.90901537]
[1748751701874,0.24782377,104520.0,104510.0,0.92750004]
[1748751702059,0.24782377,104520.0,104510.0,0.90966725]
[1748751702467,0.24782377,104520.0,104510.0,0.92750004]
[1748751702715,0.24782377,104520.0,104510.0,0.91858364]
[1748751702914,0.24782377,104520.0,104510.0,0.90966725]
[1748751703651,0.24782377,104520.0,104510.0,0.93641633]
[1748751704083,0.24782377,104520.0,104510.0,0.93641672]
[1748751704215,0.24782377,104520.0,104510.0,0.91858374]
[1748751704428,0.24782377,104520.0,104510.0,0.93641672]
[1748751704633,0.24782377,104520.0,104510.0,0.90966725]
[1748751705207,0.24782377,104520.0,104510.0,0.92750024]
[1748751706409,0.24782377,104520.0,104510.0,0.94533324]
[1748751706719,0.24782377,104520.0,104510.0,0.95424974]
[1748751706926,0.24782377,104520.0,104510.0,0.92750024]
[1748751707125,0.24782377,104520.0,104510.0,0.93641674]
[1748751707485,0.24782377,104520.0,104510.0,0.95424974]
[1748751707713,0.24782377,104520.0,104510.0,0.95424975]
[1748751707925,0.24782377,104520.0,104510.0,0.92750024]
[1748751708125,0.24782377,104520.0,104510.0,0.9542498]
[1748751708338,0.24782377,104520.0,104510.0,0.95424974]
[1748751708532,0.24782377,104520.0,104510.0,0.94533324]
[1748751708735,0.24782377,104520.0,104510.0,0.95424974]
[1748751708909,0.24782377,104520.0,104510.0,0.94533328]
[1748751709113,0.24782377,104520.0,104510.0,0.94468153]
[1748751709316,0.24782377,104520.0,104510.0,0.94468154]
[1748751709534,0.24782377,104520.0,104510.0,0.94468153]
[1748751709737,0.24782377,104520.0,104510.0,0.91793197]
[1748751709963,0.24782377,104520.0,104510.0,0.92684847]
[1748751710136,0.24782377,104520.0,104510.0,0.93576498]
[1748751710355,0.24782377,104520.0,104510.0,0.94468148]
[1748751711086,0.24782377,104520.0,104510.0,0.95424975]
[1748751711503,0.24782377,104520.0,104510.0,0.93641674]
[1748751711926,0.24782377,104520.0,104510.0,0.95424975]
[1748751712598,0.24782377,104520.0,104510.0,0.93641674]
[1748751712783,0.24782377,104520.0,104510.0,0.92750024]
[1748751712986,0.24782377,104520.0,104510.0,0.95424975]
[1748751713191,0.24782377,104520.0,104510.0,0.95424974]
[1748751713383,0.24782377,104520.0,104510.0,0.98466991]
[1748751713634,0.24782377,104520.0,104510.0,0.95424975]
[1748751714291,0.24782377,104520.0,104510.0,0.95424974]
[1748751714696,0.24782377,104520.0,104510.0,0.95424975]
[1748751715208,0.24782377,104520.0,104510.0,0.94533324]
[1748751715404,0.24782377,104520.0,104510.0,0.95424974]
[1748751715769,0.24782377,104520.0,104510.0,0.92750024]
[1748751715972,0.24782377,104520.0,104510.0,0.95424974]
[1748751716385,0.24782377,104520.0,104510.0,0.94533324]
[1748751716612,0.0469053,104520.0,104510.0,0.92750024]
[1748751716870,0.0155053,104520.0,104510.0,1.08707058]
[1748751717082,0.0155053,104520.0,104510.0,1.42706758]
[1748751717736,0.0155053,104520.0,104510.0,1.42706479]
[1748751717936,0.0155053,104520.0,104510.0,1.42704395]
[1748751718107,0.0155053,104520.0,104510.0,1.40922709]
[1748751718453,0.0155053,104520.0,104510.0,1.41813073]
[1748751719570,0.0155053,104520.0,104510.0,1.40922709]
[1748751719756,0.0155053,104520.0,104510.0,1.41812822]
[1748751719971,0.0155053,104520.0,104510.0,1.40922709]
[1748751720180,0.0155053,104520.0,104510.0,1.41812822]
[1748751720385,0.0155053,104520.0,104510.0,1.42702935]
[1748751720585,0.0155053,104520.0,104510.0,1.43593048]
[1748751720942,0.0155053,104520.0,104510.0,1.44483161]
[1748751721148,0.0155053,104520.0,104510.0,1.43593048]
[1748751721357,0.0155053,104520.0,104510.0,1.44483162]
[1748751721559,0.0155053,104520.0,104510.0,1.43593048]
[1748751722215,0.0155053,104520.0,104510.0,1.44483161]
[1748751723086,0.0155053,104520.0,104510.0,1.77660555]
[1748751723495,0.0155053,104520.0,104510.0,1.4626335]
[1748751724665,0.02507202,104520.0,104510.0,1.13976051]
[1748751724875,0.0155053,104520.0,104510.0,1.4626335]
[1748751725083,0.0155053,104520.0,104510.0,1.4804353]
[1748751725490,0.0155053,104520.0,104510.0,1.48933621]
[1748751725766,0.0155053,104520.0,104510.0,1.4804353]
[1748751726635,0.0155053,104520.0,104510.0,1.48933624]
[1748751727119,0.0320053,104520.0,104510.0,1.48933624]
[1748751727334,0.0478053,104520.0,104510.0,1.49823719]
[1748751727548,0.0478053,104520.0,104510.0,1.48933624]
[1748751728473,0.0478053,104520.0,104510.0,1.49823671]
[1748751728804,0.0478053,104520.0,104510.0,1.48933624]
[1748751729412,0.05737202,104520.0,104510.0,1.48933624]
[1748751729809,0.05737202,104520.0,104510.0,1.19893624]
[1748751730092,0.06693883,104520.0,104510.0,1.16638325]
[1748751730310,0.08607318,104520.0,104510.0,1.4981559]
[1748751730536,0.06957318,104520.0,104510.0,1.48925624]
[1748751730744,0.06957318,104520.0,104510.0,1.51967641]
[1748751730949,0.07914054,104520.0,104510.0,1.19893624]
[1748751731149,0.07914054,104520.0,104510.0,1.58663601]
[1748751731297,0.06957318,104520.0,104510.0,1.58663601]
[1748751731479,0.26785794,104520.0,104510.0,1.5675001]
[1748751731683,0.26785794,104520.0,104510.0,1.57706713]
[1748751732031,0.26785794,104520.0,104510.0,1.56816842]
[1748751732254,0.26785794,104520.0,104510.0,1.57773587]
[1748751732877,0.26785794,104520.0,104510.0,1.55859996]
[1748751733130,0.26785794,104520.0,104510.0,1.56749881]
[1748751733314,0.26785794,104520.0,104510.0,1.57706672]
[1748751733517,0.27742548,104520.0,104510.0,1.57706672]
[1748751733729,0.27742548,104520.0,104510.0,1.5715162]
[1748751733937,0.27742548,104520.0,104510.0,1.57218485]
[1748751734140,0.27742548,104520.0,104510.0,1.26272876]
[1748751734366,0.27742548,104520.0,104510.0,1.57218467]
[1748751734790,0.27742548,104520.0,104510.0,1.58108478]
[1748751734990,0.27742548,104520.0,104510.0,1.57218467]
[1748751735206,0.27742548,104520.0,104510.0,1.58108469]
[1748751735419,0.27742548,104520.0,104510.0,1.57218467]
[1748751736253,0.27742548,104520.0,104510.0,1.58108444]
[1748751736458,0.27742548,104520.0,104510.0,1.5810846]
[1748751736645,0.27742548,104520.0,104510.0,1.57218467]
[1748751737896,0.08607455,104520.0,104510.0,1.59065204]
[1748751738134,0.08607455,104520.0,104510.0,1.58175249]
[1748751739449,0.08607455,104520.0,104510.0,1.59065155]
[1748751739688,0.08607455,104520.0,104510.0,1.58175249]
[1748751739892,0.08607455,104520.0,104510.0,1.5906522]
[1748751740065,0.27742548,104520.0,104510.0,1.58108438]
[1748751740222,0.27742548,104520.0,104510.0,1.58108437]
[1748751740421,0.27742548,104520.0,104510.0,1.58175249]
[1748751741293,0.08607455,104520.0,104510.0,1.58175249]
[1748751741689,0.08607455,104520.0,104510.0,1.59065222]
[1748751741922,0.07650701,104520.0,104510.0,1.58175249]
[1748751742688,0.07650701,104520.0,104510.0,1.59065273]
[1748751742903,0.07650701,104520.0,104510.0,1.58175249]
[1748751743115,0.06693965,104520.0,104510.0,1.58175249]
[1748751743324,0.07650701,104520.0,104510.0,1.59065274]
[1748751743908,0.07650701,104520.0,104510.0,1.59065275]
[1748751744108,0.07650701,104520.0,104510.0,1.59065475]
[1748751744535,0.05737211,104520.0,104510.0,1.59065486]
[1748751744729,0.05737211,104520.0,104510.0,1.59065565]
[1748751744962,0.05737211,104520.0,104510.0,1.59065578]
[1748751745118,0.05737211,104520.0,104510.0,1.5906572]
[1748751745651,0.05737211,104520.0,104510.0,1.59065688]
[1748751745857,0.05737211,104520.0,104510.0,1.59065677]
[1748751746062,0.05737211,104520.0,104510.0,1.59065676]
[1748751746241,0.05737211,104520.0,104510.0,1.58175249]
[1748751747251,0.06693901,104520.0,104510.0,1.58175249]
[1748751747847,0.06693901,104520.0,104510.0,1.59066615]
[1748751748287,0.06693901,104520.0,104510.0,1.59066614]
[1748751748500,0.06693901,104520.0,104510.0,1.57284477]
[1748751748684,0.06693901,104520.0,104510.0,1.57284516]
[1748751749063,0.06693901,104520.0,104510.0,1.56393112]
[1748751749480,0.06693901,104520.0,104510.0,1.57284572]
[1748751749673,0.06693901,104520.0,104510.0,1.56393112]
[1748751750212,0.05043901,104520.0,104510.0,1.56393112]
[1748751750780,0.03463901,104520.0,104510.0,1.56393112]
[1748751750974,0.03463901,104520.0,104510.0,1.57284575]
[1748751751175,0.03463901,104520.0,104510.0,1.56393112]
[1748751751379,0.03463901,104520.0,104510.0,1.57284574]
[1748751751579,0.03463901,104520.0,104510.0,1.56393112]
[1748751752190,0.03463901,104520.0,104510.0,1.57284574]
[1748751752510,0.03463901,104520.0,104510.0,1.57284575]
[1748751752905,0.03463901,104520.0,104510.0,1.57284601]
[1748751753104,0.03463901,104520.0,104510.0,1.57284602]
[1748751753344,0.03463901,104520.0,104510.0,1.56393112]
[1748751753990,0.03463901,104520.0,104510.0,1.57284586]
[1748751754203,0.03463901,104520.0,104510.0,1.56393112]
[1748751754414,0.03463901,104520.0,104510.0,1.57284591]
[1748751754593,0.03463901,104520.0,104510.0,1.56393112]
[1748751755446,0.03463901,104520.0,104510.0,1.5728457]
[1748751755687,0.03463901,104520.0,104510.0,1.57284567]
[1748751755867,0.03463901,104520.0,104510.0,1.56393112]
[1748751756081,0.03463901,104520.0,104510.0,1.57284566]
[1748751756313,0.03463901,104520.0,104510.0,1.56393112]
[1748751757125,0.03463901,104520.0,104510.0,1.5728456]
[1748751757302,0.03463901,104520.0,104510.0,1.56393112]
[1748751758201,0.03463901,104520.0,104510.0,1.57284562]
[1748751758415,0.03463901,104520.0,104510.0,1.56393112]
[1748751758625,0.03463901,104520.0,104510.0,1.57284562]
[1748751758825,0.03463901,104520.0,104510.0,1.56393112]
[1748751759759,0.03463901,104520.0,104510.0,1.57284558]
[1748751760112,0.03463901,104520.0,104510.0,1.58176004]
[1748751760537,0.03463901,104520.0,104510.0,1.58176022]
[1748751761099,0.03463901,104520.0,104510.0,1.57284558]
[1748751761526,0.03463901,104520.0,104510.0,1.58176074]
[1748751761722,0.03463901,104520.0,104510.0,1.57284558]
[1748751763626,0.044206,104520.0,104510.0,1.57284558]
[1748751764035,0.044206,104520.0,104510.0,1.59067595]
[1748751764237,0.044206,104520.0,104510.0,1.57284558]
[1748751764793,0.044206,104520.0,104510.0,1.28252558]
[1748751764993,0.044206,104520.0,104510.0,1.5817213]
[1748751765212,0.044206,104520.0,104510.0,1.58172117]
[1748751765423,0.044206,104520.0,104510.0,1.59063676]
[1748751765606,0.044206,104520.0,104510.0,1.58172119]
[1748751765745,0.044206,104520.0,104510.0,1.5906368]
[1748751765950,0.044206,104520.0,104510.0,1.58172119]
[1748751766355,0.044206,104520.0,104510.0,1.608468]
[1748751766588,0.044206,104520.0,104510.0,0.87943598]
[1748751766792,0.05377318,104520.0,104510.0,1.58172119]
[1748751766986,0.05377318,104520.0,104510.0,1.59063689]
[1748751767232,0.05377318,104520.0,104510.0,1.58172119]
[1748751767824,0.07268798,104520.0,104510.0,1.59955352]
[1748751768023,0.07268798,104520.0,104510.0,1.58172119]
[1748751768468,0.05377318,104520.0,104510.0,1.59955348]
[1748751768739,0.05377318,104520.0,104510.0,1.60846947]
[1748751768984,0.05377318,104520.0,104510.0,1.60846629]
[1748751769714,0.06334045,104520.0,104510.0,1.60846634]
[1748751769931,0.06334045,104520.0,104510.0,1.60846509]
[1748751770513,0.063341,104520.0,104510.0,1.58172119]
[1748751770710,0.063341,104520.0,104510.0,1.59063559]
[1748751770933,0.063341,104520.0,104510.0,1.58172119]
[1748751771148,0.063341,104520.0,104510.0,1.59063559]
[1748751771327,0.063341,104520.0,104510.0,1.6084644]
[1748751771543,0.063341,104520.0,104510.0,1.5906356]
[1748751771747,0.063341,104520.0,104510.0,1.60846445]
[1748751771953,0.063341,104520.0,104510.0,1.60846444]
[1748751772128,0.063341,104520.0,104510.0,1.6084644]
[1748751772348,0.063341,104520.0,104510.0,1.58172119]
[1748751772545,0.063341,104520.0,104510.0,1.5906356]
[1748751772769,0.063341,104520.0,104510.0,1.58172119]
[1748751772964,0.07282835,104520.0,104510.0,1.58172119]
[1748751773171,0.07282835,104520.0,104510.0,1.59955003]
[1748751773375,0.07282835,104520.0,104510.0,1.58172119]
[1748751773591,0.063341,104520.0,104510.0,1.58172119]
[1748751773803,0.25469257,104520.0,104510.0,1.57215337]
[1748751774422,0.25469257,104520.0,104510.0,1.5810678]
[1748751774634,0.25469257,104520.0,104510.0,1.59889666]
[1748751775070,0.25469257,104520.0,104510.0,1.57215337]
[1748751775253,0.0537741,104520.0,104510.0,1.59954966]
[1748751775461,0.07924155,104520.0,104510.0,1.62105559]
[1748751775668,0.09584155,104520.0,104510.0,1.60846407]
[1748751775878,0.09584155,104520.0,104510.0,1.60444718]
[1748751776425,0.09584155,104520.0,104510.0,1.60444729]
[1748751776625,0.09584155,104520.0,104510.0,1.58661872]
[1748751776763,0.09584155,104520.0,104510.0,1.5777043]
[1748751776966,0.09584155,104520.0,104510.0,1.58661872]
[1748751777145,0.09584155,104520.0,104510.0,1.60444757]
[1748751777346,0.09584155,104520.0,104510.0,1.59553315]
[1748751777544,0.09584155,104520.0,104510.0,1.60444756]
[1748751778613,0.09584155,104520.0,104510.0,1.58661882]
[1748751778780,0.09584155,104520.0,104510.0,1.58661905]
[1748751779028,0.09584155,104520.0,104510.0,1.60444854]
[1748751779226,0.0958421,104520.0,104510.0,1.60444854]
[1748751779463,0.06713975,104520.0,104510.0,1.58661904]
[1748751779582,0.07670711,104520.0,104510.0,1.61113467]
[1748751779778,0.07670711,104520.0,104510.0,1.64155484]
[1748751780002,0.07670711,104520.0,104510.0,1.5777043]
[1748751780214,0.07670711,104520.0,104510.0,1.61113492]
[1748751780415,0.06080711,104520.0,104510.0,1.61113492]
[1748751780840,0.04420711,104520.0,104510.0,1.61113492]
[1748751781259,0.04420711,104520.0,104510.0,1.58661913]
[1748751781463,0.04420711,104520.0,104510.0,1.5777043]
[1748751782030,0.04420711,104520.0,104510.0,1.58661929]
[1748751782233,0.04420711,104520.0,104510.0,1.5777043]
[1748751782434,0.04420711,104520.0,104510.0,1.59553431]
[1748751782674,0.04420711,104520.0,104510.0,1.5777043]
[1748751782875,0.04420711,104520.0,104510.0,1.61113746]
[1748751783205,0.04420711,104520.0,104510.0,1.62896858]
[1748751783344,0.04420711,104520.0,104510.0,1.64457082]
[1748751783554,0.04420711,104520.0,104510.0,1.63565523]
[1748751783773,0.04420711,104520.0,104510.0,1.61782415]
[1748751783975,0.04420711,104520.0,104510.0,1.63565518]
[1748751784214,0.04420711,104520.0,104510.0,1.62005299]
[1748751784417,0.04420711,104520.0,104510.0,1.6178241]
[1748751784587,0.04420711,104520.0,104510.0,1.61113746]
[1748751784790,0.04420711,104520.0,104510.0,1.62896851]
[1748751785063,0.04420711,104520.0,104510.0,1.61113746]
[1748751785266,0.04420711,104520.0,104510.0,1.64155763]
[1748751785439,0.04420711,104520.0,104510.0,1.61113746]
[1748751785657,0.03463975,104520.0,104510.0,1.61113746]
[1748751785971,0.03463975,104520.0,104510.0,1.63788409]
[1748751786165,0.03463975,104520.0,104510.0,1.62673966]
[1748751786310,0.03463975,104520.0,104510.0,1.6178241]
[1748751786511,0.03463975,104520.0,104510.0,1.61782411]
[1748751786934,0.03463975,104520.0,104510.0,1.64234183]